[Event "12th Asrian Memorial 2019"]
[Site "Yerevan"]
[Date "2019.06.15"]
[Round "5.6"]
[White "Vaganian, Rafael A"]
[Black "Barseghyan, Armen Ar."]
[Result "0-1"]
[ECO "A04"]
[WhiteElo "2526"]
[BlackElo "2294"]
[Annotator "ChessBase"]
[PlyCount "116"]
[EventDate "2019.06.11"]
[EventType "swiss"]
[EventCountry "ARM"]
[SourceTitle "playchess.com"]
[Source "ChessBase"]
[SourceQuality "1"]
[TimeControl "40/5400+30:1800+30"]

1. Nf3 {[%emt 0:00:00]} c5 {[%emt 0:00:00]} 2. c4 {[%emt 0:00:00]} Nf6 {[%emt 0:00:23]} 3. g3 {[%emt 0:00:07]} g6 {[%emt 0:00:14]} 4. Bg2 {[%emt 0:00:07]} Bg7 {[%emt 0:00:06]} 5. Nc3 {[%emt 0:00:13]} O-O {[%emt 0:00:16]} 6. d4 {[%emt 0:00:19]} cxd4 {[%emt 0:00:11]} 7. Nxd4 {[%emt 0:00:06]} Nc6 {[%emt 0:00:17]} 8. O-O {[%emt 0:00:18]} Qa5 {[%emt 0:00:26]} 9. Nb3 {[%emt 0:02:11]} Qh5 {[%emt 0:00:24]} 10. c5 {[%emt 0:00:05]} a5 {[%emt 0:00:52]} 11. Na4 {[%emt 0:02:59]} d6 {[%emt 0:12:29]} 12. Nb6 {[%emt 0:09:05]} Rb8 {[%emt 0:02:19]} 13. e4 {[%emt 0:08:05]} Bg4 {[%emt 0:12:55]} 14. f3 {[%emt 0:00:35]} Be6 {[%emt 0:00:08]} 15. g4 {[%emt 0:01:35]} Bxb3 {[%emt 0:00:46]} 16. gxh5 {[%emt 0:02:21]} Bxd1 {[%emt 0:00:08]} 17. Rxd1 {[%emt 0:00:10]} dxc5 {[%emt 0:05:48]} 18. h6 {[%emt 0:01:11]} Bh8 {[%emt 0:00:05]} 19. Be3 {[%emt 0:00:36]} Nd4 {[%emt 0:12:01]} 20. Rd2 {[%emt 0:14:53]} Rbd8 {[%emt 0:06:18]} 21. Rc1 {[%emt 0:00:18]} e6 {[%emt 0:06:43]} 22. Rxc5 {[%emt 0:11:31]} Nc6 {[%emt 0:01:39]} 23. Nc4 {[%emt 0:01:09]} Rxd2 {[%emt 0:02:44]} 24. Nxd2 {[%emt 0:05:15]} Nh5 {[%emt 0:10:19]} 25. Rb5 {[%emt 0:01:22]} f5 {[%emt 0:03:20]} 26. Rxb7 {[%emt 0:01:19]} Rd8 {[%emt 0:00:41]} 27. f4 {[%emt 0:02:18]} Bd4 {[%emt 0:00:26]} 28. Kf2 {[%emt 0:04:03]} Bxe3+ {[%emt 0:07:15]} 29. Kxe3 {[%emt 0:00:12]} Nb4 {[%emt 0:00:01]} 30. Nc4 {[%emt 0:04:00]} Nc2+ {[%emt 0:00:55]} 31. Kf2 {[%emt 0:00:38]} Nxf4 {[%emt 0:03:41]} 32. e5 {[%emt 0:01:28]} Nd3+ {[%emt 0:01:54]} 33. Ke2 {[%emt 0:05:18]} Nf4+ {[%emt 0:02:42]} 34. Kf3 {[%emt 0:00:29]} g5 {[%emt 0:02:02]} 35. Rg7+ {[%emt 0:03:14]} Kh8 {[%emt 0:00:33]} 36. Bf1 {[%emt 0:10:25]} Ng6 {[%emt 0:00:42]} 37. Kf2 {[%emt 0:00:45]} Nb4 {[%emt 0:01:15]} 38. Nxa5 {[%emt 0:01:51]} Nxe5 {[%emt 0:00:23]} 39. Re7 {[%emt 0:00:17]} Ng4+ {[%emt 0:01:29]} 40. Kg1 {[%emt 0:00:00]} Nxh6 {[%emt 0:00:00]} 41. Rxe6 {[%emt 0:00:46]} Kg7 {[%emt 0:07:02]} 42. a3 {[%emt 0:01:15]} Nc2 {[%emt 0:02:13]} 43. Nc4 {[%emt 0:00:07]} Rd1 {[%emt 0:03:13]} 44. b4 {[%emt 0:00:30]} f4 {[%emt 0:01:40]} 45. h3 {[%emt 0:05:28]} Nf5 {[%emt 0:01:34]} 46. Kf2 {[%emt 0:00:20]} Nce3 {[%emt 0:01:45]} 47. Be2 {[%emt 0:01:27]} Ra1 {[%emt 0:05:07]} 48. b5 {[%emt 0:02:31]} Ra2 {[%emt 0:00:59]} 49. Re4 {[%emt 0:13:14]} Nxc4 {[%emt 0:03:37]} 50. Rxc4 {[%emt 0:00:12]} Ng3 {[%emt 0:00:01]} 51. a4 {[%emt 0:05:08]} Rxe2+ {[%emt 0:00:05]} 52. Kf3 {[%emt 0:00:04]} h5 {[%emt 0:03:25]} 53. b6 {[%emt 0:03:58]} Re3+ {[%emt 0:00:55]} 54. Kg2 {[%emt 0:00:02]} Rb3 {[%emt 0:01:21]} 55. a5 {[%emt 0:00:01]} Nf5 {[%emt 0:01:04]} 56. Rc7+ {[%emt 0:01:21]} Kf6 {[%emt 0:00:10]} 57. Rc6+ {[%emt 0:00:08]} Ke5 {[%emt 0:00:14]} 58. Kf2 {[%emt 0:03:12]} Rb2+ {[%emt 0:00:13]} 0-1

[Event "12th Asrian Memorial 2019"]
[Site "Yerevan"]
[Date "2019.06.15"]
[Round "5.7"]
[White "Babujian, Levon"]
[Black "Der Manuelian, Haik"]
[Result "0-1"]
[ECO "C50"]
[WhiteElo "2485"]
[BlackElo "2309"]
[Annotator "ChessBase"]
[PlyCount "60"]
[EventDate "2019.06.11"]
[EventType "swiss"]
[EventCountry "ARM"]
[SourceTitle "playchess.com"]
[Source "ChessBase"]
[SourceQuality "1"]
[TimeControl "40/5400+30:1800+30"]

1. e4 {[%emt 0:00:00]} e5 {[%emt 0:00:00]} 2. Nf3 {[%emt 0:00:00]} Nc6 {[%emt 0:00:00]} 3. Bc4 {[%emt 0:00:03]} Bc5 {[%emt 0:00:00]} 4. O-O {[%emt 0:00:05]} Nf6 {[%emt 0:00:00]} 5. d4 {[%emt 0:00:07]} Bxd4 {[%emt 0:00:16]} 6. Nxd4 {[%emt 0:00:07]} Nxd4 {[%emt 0:00:05]} 7. Bg5 {[%emt 0:00:05]} Qe7 {[%emt 0:01:20]} 8. Nc3 {[%emt 0:04:07]} c6 {[%emt 0:00:34]} 9. f4 {[%emt 0:00:04]} d6 {[%emt 0:00:05]} 10. f5 {[%emt 0:02:08]} Bd7 {[%emt 0:28:07]} 11. a4 {[%emt 0:01:14]} d5 {[%emt 0:11:34]} 12. Bxf6 {[%emt 0:11:59]} gxf6 {[%emt 0:00:10]} 13. exd5 {[%emt 0:00:07]} O-O-O {[%emt 0:11:48]} 14. Qd3 {[%emt 0:04:21]} Kb8 {[%emt 0:04:49]} 15. Kh1 {[%emt 0:04:48]} Qb4 {[%emt 0:02:34]} 16. Ba2 {[%emt 0:13:09]} Bxf5 {[%emt 0:04:48]} 17. Qd2 {[%emt 0:07:09]} cxd5 {[%emt 0:06:01]} 18. Qh6 {[%emt 0:00:04]} Qxb2 {[%emt 0:09:06]} 19. Nb5 {[%emt 0:01:18]} Nxb5 {[%emt 0:02:18]} 20. axb5 {[%emt 0:00:04]} Be4 {[%emt 0:02:26]} 21. Qe3 {[%emt 0:05:01]} Qxc2 {[%emt 0:03:56]} 22. Rf2 {[%emt 0:00:46]} d4 {[%emt 0:06:08]} 23. Qe1 {[%emt 0:00:35]} Qc3 {[%emt 0:00:01]} 24. Qd1 {[%emt 0:00:10]} d3 {[%emt 0:03:00]} 25. Bxf7 {[%emt 0:05:34]} d2 {[%emt 0:00:57]} 26. Bb3 {[%emt 0:00:36]} Rd3 {[%emt 0:02:16]} 27. Ba4 {[%emt 0:06:29]} Rhd8 {[%emt 0:00:11]} 28. Rf1 {[%emt 0:01:43]} Qd4 {[%emt 0:00:46]} 29. Bb3 {[%emt 0:01:18]} Qc3 {[%emt 0:00:34]} 30. Be6 {[%emt 0:02:37]} Qxa1 {[%emt 0:00:34]} 0-1

[Event "12th Asrian Memorial 2019"]
[Site "Yerevan"]
[Date "2019.06.15"]
[Round "5.8"]
[White "Sargsyan, Anna M."]
[Black "Kotanjian, Tigran"]
[Result "0-1"]
[ECO "A48"]
[WhiteElo "2290"]
[BlackElo "2462"]
[Annotator "ChessBase"]
[PlyCount "58"]
[EventDate "2019.06.11"]
[EventType "swiss"]
[EventCountry "ARM"]
[SourceTitle "playchess.com"]
[Source "ChessBase"]
[SourceQuality "1"]
[TimeControl "40/5400+30:1800+30"]

1. d4 {[%emt 0:04:47]} Nf6 {[%emt 0:00:00]} 2. Nf3 {[%emt 0:00:21]} g6 {[%emt 0:00:14]} 3. Bg5 {[%emt 0:00:07]} Bg7 {[%emt 0:00:07]} 4. Nbd2 {[%emt 0:00:04]} O-O {[%emt 0:04:31]} 5. e4 {[%emt 0:00:37]} d5 {[%emt 0:00:36]} 6. e5 {[%emt 0:02:59]} Ne4 {[%emt 0:00:06]} 7. Be3 {[%emt 0:00:07]} c5 {[%emt 0:01:50]} 8. c3 {[%emt 0:01:26]} cxd4 {[%emt 0:00:13]} 9. cxd4 {[%emt 0:00:04]} Nc6 {[%emt 0:04:49]} 10. Be2 {[%emt 0:04:20]} f6 {[%emt 0:01:44]} 11. exf6 {[%emt 0:18:07]} exf6 {[%emt 0:00:16]} 12. Nb3 {[%emt 0:02:01]} f5 {[%emt 0:00:23]} 13. g3 {[%emt 0:01:09]} g5 {[%emt 0:02:51]} 14. Qc1 {[%emt 0:04:07]} f4 {[%emt 0:00:22]} 15. gxf4 {[%emt 0:02:15]} gxf4 {[%emt 0:00:12]} 16. Bxf4 {[%emt 0:01:39]} Qf6 {[%emt 0:02:20]} 17. Be5 {[%emt 0:05:51]} Nxe5 {[%emt 0:00:57]} 18. dxe5 {[%emt 0:00:08]} Qb6 {[%emt 0:00:14]} 19. Qe3 {[%emt 0:02:13]} Qb4+ {[%emt 0:00:22]} 20. Nbd2 {[%emt 0:01:10]} Bg4 {[%emt 0:04:16]} 21. Qb3 {[%emt 0:04:45]} Qa5 {[%emt 0:03:50]} 22. Rd1 {[%emt 0:05:01]} Rac8 {[%emt 0:08:53]} 23. Qd3 {[%emt 0:15:08]} Kh8 {[%emt 0:03:12]} 24. a3 {[%emt 0:02:52]} Bxf3 {[%emt 0:04:28]} 25. Bxf3 {[%emt 0:00:31]} Nxd2 {[%emt 0:01:14]} 26. Rxd2 {[%emt 0:00:30]} Bh6 {[%emt 0:00:20]} 27. b4 {[%emt 0:02:18]} Bxd2+ {[%emt 0:00:06]} 28. Kxd2 {[%emt 0:00:02]} Qb6 {[%emt 0:00:08]} 29. Ke2 {[%emt 0:00:10]} Rce8 {[%emt 0:01:05]} 0-1

[Event "12th Asrian Memorial 2019"]
[Site "Yerevan"]
[Date "2019.06.15"]
[Round "5.9"]
[White "Mikaelyan, Arman"]
[Black "Akopov, Roman"]
[Result "1-0"]
[ECO "C95"]
[WhiteElo "2453"]
[BlackElo "2264"]
[Annotator "ChessBase"]
[PlyCount "53"]
[EventDate "2019.06.11"]
[EventType "swiss"]
[EventCountry "ARM"]
[SourceTitle "playchess.com"]
[Source "ChessBase"]
[SourceQuality "1"]
[TimeControl "40/5400+30:1800+30"]

1. e4 {[%emt 0:00:00]} e5 {[%emt 0:00:00]} 2. Nf3 {[%emt 0:00:00]} Nc6 {[%emt 0:00:00]} 3. Bb5 {[%emt 0:00:01]} a6 {[%emt 0:00:19]} 4. Ba4 {[%emt 0:00:07]} Nf6 {[%emt 0:00:20]} 5. O-O {[%emt 0:00:11]} Be7 {[%emt 0:00:22]} 6. Re1 {[%emt 0:00:45]} b5 {[%emt 0:00:20]} 7. Bb3 {[%emt 0:00:04]} d6 {[%emt 0:00:52]} 8. c3 {[%emt 0:00:07]} O-O {[%emt 0:00:11]} 9. h3 {[%emt 0:00:28]} Nb8 {[%emt 0:00:42]} 10. d4 {[%emt 0:00:19]} Nbd7 {[%emt 0:00:11]} 11. Nbd2 {[%emt 0:00:13]} Bb7 {[%emt 0:00:10]} 12. Bc2 {[%emt 0:00:17]} Re8 {[%emt 0:03:08]} 13. Nf1 {[%emt 0:02:41]} Bf8 {[%emt 0:01:24]} 14. Ng3 {[%emt 0:00:21]} g6 {[%emt 0:00:00]} 15. a4 {[%emt 0:00:17]} c5 {[%emt 0:01:11]} 16. d5 {[%emt 0:00:16]} c4 {[%emt 0:00:00]} 17. Bg5 {[%emt 0:00:14]} h6 {[%emt 0:00:00]} 18. Be3 {[%emt 0:00:08]} Nc5 {[%emt 0:02:45]} 19. Qd2 {[%emt 0:00:10]} h5 {[%emt 0:07:34]} 20. Bg5 {[%emt 0:01:32]} Be7 {[%emt 0:00:00]} 21. Ra3 {[%emt 0:00:00]} Nfd7 {[%emt 0:00:00]} 22. Be3 {[%emt 0:00:00]} Qc7 {[%emt 0:00:00]} 23. Ng5 {[%emt 0:00:00]} Bf6 {[%emt 0:00:00]} 24. Rf1 {[%emt 0:00:00]} Re7 {[%emt 0:00:00]} 25. Qd1 {[%emt 0:00:00]} Bg7 {[%emt 0:00:00]} 26. Kh1 {[%emt 0:00:00]} Rae8 {[%emt 0:00:00]} 27. Qa1 {[%emt 0:00:00]} 1-0

[Event "12th Asrian Memorial 2019"]
[Site "Yerevan"]
[Date "2019.06.15"]
[Round "5.10"]
[White "Mnatsakanian, Arsen"]
[Black "Davtyan, Artur"]
[Result "0-1"]
[ECO "C26"]
[WhiteElo "2255"]
[BlackElo "2431"]
[Annotator "NA"]
[PlyCount "80"]
[EventDate "2019.06.11"]
[EventType "swiss"]
[EventCountry "ARM"]
[SourceTitle "playchess.com"]
[Source "ChessBase"]
[SourceQuality "1"]
[TimeControl "40/5400+30:1800+30"]

1. e4 {[%emt 0:00:00]} e5 {[%emt 0:00:19]} 2. Nc3 {[%emt 0:05:37]} Nf6 {[%emt 0:03:42]} 3. g3 {[%emt 0:00:59]} Bc5 {[%emt 0:00:30]} 4. Bg2 {[%emt 0:00:07]} Nc6 {[%emt 0:00:32]} 5. d3 {[%emt 0:00:29]} a6 {[%emt 0:00:15]} 6. Nge2 {[%emt 0:00:09]} d6 {[%emt 0:00:11]} 7. O-O {[%emt 0:00:06]} Bd7 {[%emt 0:11:24]} 8. h3 {[%emt 0:02:52]} h6 {[%emt 0:12:44]} 9. Kh2 $11 {[%emt 0:07:59]} h5 {[%emt 0:05:28]} 10. Nd5 {[%emt 0:06:51]} Nxd5 {[%emt 0:15:26]} 11. exd5 {[%emt 0:00:06]} Ne7 {[%emt 0:04:38]} 12. d4 {[%emt 0:02:07]} exd4 {[%emt 0:06:54]} 13. Nxd4 {[%emt 0:10:32]} Ng6 {[%emt 0:00:16]} 14. b4 {[%emt 0:07:24]} Bxb4 {[%emt 0:09:18]} 15. Rb1 {[%emt 0:00:04]} Ba5 {[%emt 0:06:16]} 16. Rxb7 {[%emt 0:03:14]} h4 {[%emt 0:00:13]} 17. Rb3 {[%emt 0:01:49]} O-O {[%emt 0:07:02]} 18. Qh5 {[%emt 0:00:53]} Qf6 {[%emt 0:03:32]} 19. Nf3 {[%emt 0:05:41]} hxg3+ {[%emt 0:07:27]} 20. fxg3 {[%emt 0:00:06]} Ne5 {[%emt 0:00:01]} 21. Bb2 {[%emt 0:21:38]} Qg6 {[%emt 0:00:46]} 22. Qxg6 {[%emt 0:01:08]} Nxg6 {[%emt 0:00:08]} 23. Ng5 {[%emt 0:00:12]} Rae8 {[%emt 0:00:12]} 24. Bf3 {[%emt 0:01:06]} Bb5 {[%emt 0:01:20]} 25. Rf2 {[%emt 0:00:20]} Bb6 {[%emt 0:02:12]} 26. Rg2 {[%emt 0:00:01]} Bf1 {[%emt 0:01:05]} 27. Rg1 {[%emt 0:00:33]} Bxg1+ {[%emt 0:00:55]} 28. Kxg1 {[%emt 0:00:06]} Bb5 {[%emt 0:00:16]} 29. Kf2 {[%emt 0:01:14]} Ne5 {[%emt 0:00:06]} 30. Rb4 {[%emt 0:00:17]} Nxf3 {[%emt 0:00:40]} 31. Kxf3 {[%emt 0:00:05]} Be2+ {[%emt 0:00:07]} 32. Kf2 {[%emt 0:01:07]} Bd1 {[%emt 0:00:16]} 33. g4 {[%emt 0:00:58]} Re2+ {[%emt 0:00:08]} 34. Kg3 {[%emt 0:00:03]} Rxc2 {[%emt 0:00:15]} 35. Bd4 {[%emt 0:00:03]} Re8 {[%emt 0:00:27]} 36. Kh4 {[%emt 0:00:13]} Rd2 {[%emt 0:00:21]} 37. Bc3 {[%emt 0:00:19]} Rxd5 {[%emt 0:00:07]} 38. Rf4 {[%emt 0:00:15]} f6 {[%emt 0:00:06]} 39. Bxf6 {[%emt 0:00:06]} gxf6 {[%emt 0:00:29]} 40. Rxf6 {[%emt 0:00:00]} Kg7 {[%emt 0:00:00]} 0-1

[Event "12th Asrian Memorial 2019"]
[Site "Yerevan"]
[Date "2019.06.15"]
[Round "5.11"]
[White "Shahinyan, David"]
[Black "Yeritsyan, Hayk"]
[Result "1/2-1/2"]
[ECO "B13"]
[WhiteElo "2429"]
[BlackElo "2208"]
[Annotator "NA"]
[PlyCount "75"]
[EventDate "2019.06.11"]
[EventType "swiss"]
[EventCountry "ARM"]
[SourceTitle "playchess.com"]
[Source "ChessBase"]
[SourceQuality "1"]
[TimeControl "40/5400+30:1800+30"]

1. e4 {[%emt 0:00:59]} c6 {[%emt 0:00:15]} 2. d4 {[%emt 0:00:51]} d5 {[%emt 0:00:12]} 3. exd5 {[%emt 0:03:14]} cxd5 {[%emt 0:00:14]} 4. Bd3 {[%emt 0:00:35]} Nf6 {[%emt 0:00:26]} 5. c3 {[%emt 0:00:41]} Nc6 {[%emt 0:00:27]} 6. Bf4 {[%emt 0:00:55]} Bg4 {[%emt 0:01:59]} 7. Qb3 {[%emt 0:01:10]} Qd7 {[%emt 0:00:37]} 8. Nd2 {[%emt 0:00:36]} e6 {[%emt 0:00:18]} 9. Ngf3 {[%emt 0:00:16]} Bd6 {[%emt 0:00:41]} 10. Bxd6 {[%emt 0:00:15]} Qxd6 {[%emt 0:00:08]} 11. O-O {[%emt 0:00:06]} O-O {[%emt 0:19:08]} 12. Rae1 {[%emt 0:00:08]} Bh5 {[%emt 0:00:55]} 13. Ne5 {[%emt 0:01:15]} Rab8 {[%emt 0:00:20]} 14. a3 {[%emt 0:04:01]} Bg6 $14 {[%emt 0:02:15]} 15. Nxg6 {[%emt 0:10:55]} hxg6 {[%emt 0:00:33]} 16. Qd1 {[%emt 0:00:00]} Rfc8 {[%emt 0:17:36]} 17. Qe2 {[%emt 0:02:42]} Na5 {[%emt 0:01:29]} 18. f4 {[%emt 0:00:13]} Qb6 {[%emt 0:02:36]} 19. Nf3 {[%emt 0:01:54]} Nc4 {[%emt 0:01:33]} 20. Ne5 {[%emt 0:00:01]} Nxb2 {[%emt 0:16:25]} 21. Rb1 {[%emt 0:00:18]} Rxc3 {[%emt 0:00:09]} 22. Rxb2 {[%emt 0:00:05]} Qxd4+ {[%emt 0:00:06]} 23. Kh1 {[%emt 0:00:01]} Rbc8 {[%emt 0:00:27]} 24. Rb4 {[%emt 0:08:36]} Qc5 {[%emt 0:01:02]} 25. Rxb7 {[%emt 0:00:02]} Rc1 {[%emt 0:01:01]} 26. h3 {[%emt 0:05:36]} Ne4 {[%emt 0:11:59]} 27. Bxe4 {[%emt 0:05:19]} dxe4 {[%emt 0:00:02]} 28. Nxf7 {[%emt 0:03:58]} Qc2 {[%emt 0:03:50]} 29. Qa6 {[%emt 0:21:29]} Qc6 {[%emt 0:04:40]} 30. Qxa7 {[%emt 0:04:42]} Rxf1+ {[%emt 0:00:05]} 31. Kh2 {[%emt 0:00:02]} Qc1 {[%emt 0:08:27]} 32. Nh6+ {[%emt 0:00:49]} Kh8 {[%emt 0:00:03]} 33. Nf7+ {[%emt 0:00:06]} Kg8 {[%emt 0:00:10]} 34. Nh6+ {[%emt 0:00:42]} Kh8 {[%emt 0:00:03]} 35. Nf7+ {[%emt 0:00:26]} Kg8 {[%emt 0:00:15]} 36. Nh6+ {[%emt 0:01:05]} Kh8 {[%emt 0:00:05]} 37. Nf7+ {[%emt 0:00:21]} Kh7 38. Ng5+ 1/2-1/2

[Event "12th Asrian Memorial 2019"]
[Site "Yerevan"]
[Date "2019.06.15"]
[Round "5.12"]
[White "Piliposyan, Robert"]
[Black "Chibukhchian, Artur"]
[Result "1/2-1/2"]
[ECO "D20"]
[WhiteElo "2188"]
[BlackElo "2374"]
[Annotator "NA"]
[PlyCount "69"]
[EventDate "2019.06.11"]
[EventType "swiss"]
[EventCountry "ARM"]
[SourceTitle "playchess.com"]
[Source "ChessBase"]
[SourceQuality "1"]
[TimeControl "40/5400+30:1800+30"]

1. d4 {[%emt 0:00:00]} d5 {[%emt 0:06:25]} 2. c4 {[%emt 0:00:34]} dxc4 {[%emt 0:00:13]} 3. e3 {[%emt 0:00:24]} Nf6 {[%emt 0:04:07]} 4. Bxc4 {[%emt 0:00:15]} a6 {[%emt 0:01:01]} 5. Nf3 {[%emt 0:00:55]} e6 {[%emt 0:01:07]} 6. O-O {[%emt 0:00:34]} b5 {[%emt 0:05:20]} 7. Be2 {[%emt 0:02:40]} Nbd7 {[%emt 0:06:54]} 8. b3 {[%emt 0:07:52]} Bb7 {[%emt 0:01:49]} 9. Bb2 $14 {[%emt 0:00:13]} c5 {[%emt 0:01:25]} 10. Nbd2 {[%emt 0:00:18]} Rc8 {[%emt 0:07:59]} 11. a4 {[%emt 0:04:25]} Qb6 {[%emt 0:03:25]} 12. axb5 {[%emt 0:10:04]} axb5 {[%emt 0:02:53]} 13. Re1 {[%emt 0:09:29]} Be7 {[%emt 0:01:48]} 14. dxc5 Nxc5 {[%emt 0:07:01]} 15. Bd4 {[%emt 0:01:35]} b4 {[%emt 0:04:40]} 16. Nc4 {[%emt 0:00:18]} Qd8 {[%emt 0:13:05]} 17. Na5 {[%emt 0:10:48]} Qb6 {[%emt 0:05:11]} 18. Nxb7 {[%emt 0:05:07]} Qxb7 {[%emt 0:00:22]} 19. Ne5 {[%emt 0:01:27]} O-O {[%emt 0:00:33]} 20. Bf3 {[%emt 0:00:41]} Nd5 {[%emt 0:02:16]} 21. Re2 {[%emt 0:04:23]} Rc7 {[%emt 0:08:35]} 22. Rea2 {[%emt 0:04:14]} Rfc8 {[%emt 0:00:49]} 23. g3 {[%emt 0:04:20]} Bf8 {[%emt 0:10:21]} 24. h4 {[%emt 0:04:18]} Qb5 {[%emt 0:00:17]} 25. Ra5 {[%emt 0:06:51]} Qe8 {[%emt 0:00:20]} 26. h5 {[%emt 0:01:49]} Nc3 {[%emt 0:02:23]} 27. Bxc3 {[%emt 0:01:32]} bxc3 {[%emt 0:00:01]} 28. Ra8 {[%emt 0:02:26]} f6 {[%emt 0:00:46]} 29. Nc4 {[%emt 0:00:19]} Rxa8 {[%emt 0:01:42]} 30. Rxa8 {[%emt 0:00:07]} Rc8 {[%emt 0:01:37]} 31. Rxc8 {[%emt 0:00:48]} Qxc8 {[%emt 0:00:01]} 32. Qc2 {[%emt 0:00:06]} Qb8 {[%emt 0:00:18]} 33. Qxc3 {[%emt 0:00:05]} Qxb3 {[%emt 0:00:13]} 34. Qxb3 {[%emt 0:00:04]} Nxb3 {[%emt 0:00:06]} 35. Kg2 {[%emt 0:00:13]} 1/2-1/2

[Event "12th Asrian Memorial 2019"]
[Site "Yerevan"]
[Date "2019.06.16"]
[Round "6.3"]
[White "Baghdasaryan, Vahe"]
[Black "Sargsyan, Shant"]
[Result "0-1"]
[ECO "B10"]
[WhiteElo "2357"]
[BlackElo "2512"]
[Annotator "ChessBase"]
[PlyCount "78"]
[EventDate "2019.06.11"]
[EventType "swiss"]
[EventCountry "ARM"]
[SourceTitle "playchess.com"]
[Source "ChessBase"]
[SourceQuality "1"]
[TimeControl "40/5400+30:1800+30"]

1. e4 {[%emt 0:01:06]} c6 {[%emt 0:00:43]} 2. c4 {[%emt 0:02:37]} d5 {[%emt 0:01:02]} 3. exd5 {[%emt 0:00:07]} cxd5 {[%emt 0:00:06]} 4. cxd5 {[%emt 0:00:06]} Nf6 {[%emt 0:00:48]} 5. Nc3 {[%emt 0:00:40]} Nxd5 {[%emt 0:01:01]} 6. Nf3 {[%emt 0:01:03]} Nc6 {[%emt 0:01:06]} 7. Bb5 {[%emt 0:04:31]} g6 {[%emt 0:02:18]} 8. Qb3 {[%emt 0:01:25]} a6 {[%emt 0:15:44]} 9. Qxd5 {[%emt 0:14:52]} axb5 {[%emt 0:00:50]} 10. Qxd8+ {[%emt 0:00:18]} Kxd8 {[%emt 0:00:45]} 11. Ng5 {[%emt 0:01:26]} Ke8 {[%emt 0:05:08]} 12. Nxb5 {[%emt 0:04:17]} Ra5 {[%emt 0:00:48]} 13. a4 {[%emt 0:00:10]} Bg7 {[%emt 0:09:52]} 14. d3 {[%emt 0:04:19]} h6 {[%emt 0:16:07]} 15. Ne4 {[%emt 0:08:07]} f5 {[%emt 0:00:54]} 16. Nc5 {[%emt 0:12:55]} Kf7 {[%emt 0:02:59]} 17. Bd2 {[%emt 0:00:54]} Ra8 {[%emt 0:00:10]} 18. Bc3 {[%emt 0:00:10]} b6 {[%emt 0:01:14]} 19. Nb3 {[%emt 0:05:23]} Rd8 {[%emt 0:01:03]} 20. Ke2 {[%emt 0:07:52]} Be6 {[%emt 0:05:51]} 21. Nd2 {[%emt 0:00:22]} Rac8 {[%emt 0:02:13]} 22. Rhc1 {[%emt 0:02:33]} Bd5 {[%emt 0:09:15]} 23. Bxg7 {[%emt 0:01:24]} Kxg7 {[%emt 0:00:23]} 24. Nc4 {[%emt 0:00:08]} Bxg2 {[%emt 0:05:57]} 25. f3 {[%emt 0:05:20]} Nb4 {[%emt 0:00:33]} 26. Nxb6 {[%emt 0:08:04]} Rxc1 {[%emt 0:01:41]} 27. Rxc1 {[%emt 0:00:02]} Rxd3 {[%emt 0:00:48]} 28. Rc3 {[%emt 0:08:28]} Bxf3+ {[%emt 0:00:45]} 29. Kf2 {[%emt 0:00:01]} Bb7 {[%emt 0:06:12]} 30. Rc7 {[%emt 0:04:11]} Be4 {[%emt 0:01:17]} 31. Nc4 {[%emt 0:01:41]} Rf3+ {[%emt 0:01:02]} 32. Kg1 {[%emt 0:00:19]} Nd5 {[%emt 0:00:35]} 33. Rd7 {[%emt 0:00:45]} Nf4 {[%emt 0:01:01]} 34. Nd2 {[%emt 0:00:49]} Ne2+ {[%emt 0:00:56]} 35. Kg2 {[%emt 0:00:03]} Rd3+ {[%emt 0:00:30]} 36. Nxe4 {[%emt 0:00:52]} Rxd7 {[%emt 0:00:01]} 37. Kf2 {[%emt 0:00:18]} Nc1 {[%emt 0:00:45]} 38. Nec3 {[%emt 0:00:51]} Nb3 {[%emt 0:01:37]} 39. Ke1 {[%emt 0:00:16]} e5 {[%emt 0:00:53]} 0-1

[Event "12th Asrian Memorial 2019"]
[Site "Yerevan"]
[Date "2019.06.16"]
[Round "6.4"]
[White "Gharibyan, Mamikon"]
[Black "Kotanjian, Tigran"]
[Result "1-0"]
[ECO "D43"]
[WhiteElo "2320"]
[BlackElo "2462"]
[Annotator "RC"]
[PlyCount "61"]
[EventDate "2019.06.11"]
[EventType "swiss"]
[EventCountry "ARM"]
[SourceTitle "playchess.com"]
[Source "ChessBase"]
[SourceQuality "1"]
[TimeControl "40/5400+30:1800+30"]

1. d4 {[%emt 0:00:00]} d5 {[%emt 0:00:00]} 2. c4 {[%emt 0:00:13]} e6 {[%emt 0:00:00]} 3. Nf3 {[%emt 0:00:51]} Nf6 {[%emt 0:00:00]} 4. Nc3 {[%emt 0:01:36]} c6 {[%emt 0:01:05]} 5. Bg5 {[%emt 0:02:34]} h6 {[%emt 0:00:09]} 6. Bxf6 {[%emt 0:03:35]} Qxf6 {[%emt 0:00:08]} 7. Qb3 {[%emt 0:03:55]} Nd7 {[%emt 0:06:39]} 8. Rd1 {[%emt 0:12:36]} a5 {[%emt 0:04:48]} 9. e3 {[%emt 0:04:38]} Qd8 {[%emt 0:00:48]} 10. Bd3 {[%emt 0:07:39]} a4 {[%emt 0:02:59]} 11. Qc2 {[%emt 0:00:33]} a3 {[%emt 0:00:07]} 12. b3 {[%emt 0:00:21]} Bb4 {[%emt 0:00:10]} 13. O-O {[%emt 0:00:31]} Qa5 {[%emt 0:00:19]} 14. Ne2 {[%emt 0:01:40]} Nf6 {[%emt 0:03:01]} 15. Ng3 {[%emt 0:03:17]} O-O {[%emt 0:03:11]} 16. Ne5 {[%emt 0:06:41]} c5 {[%emt 0:01:03]} 17. f4 {[%emt 0:04:26]} cxd4 {[%emt 0:00:11]} 18. exd4 {[%emt 0:00:18]} Bc3 {[%emt 0:00:21]} 19. Qf2 {[%emt 0:05:20]} dxc4 {[%emt 0:02:33]} 20. bxc4 {[%emt 0:02:03]} Rd8 {[%emt 0:02:21]} 21. Bb1 {[%emt 0:08:05]} Qb6 {[%emt 0:03:17]} 22. Ne2 {[%emt 0:06:50]} Bb2 {[%emt 0:02:16]} 23. g4 {[%emt 0:01:20]} Qc7 {[%emt 0:06:09]} 24. g5 {[%emt 0:01:23]} Nh7 {[%emt 0:00:19]} 25. gxh6 {[%emt 0:06:58]} g6 {[%emt 0:00:50]} 26. Qg3 {[%emt 0:01:49]} Qe7 {[%emt 0:08:21]} 27. h4 {[%emt 0:02:08]} Nf6 {[%emt 0:02:01]} 28. Qg5 {[%emt 0:01:35]} Re8 {[%emt 0:00:32]} 29. Bxg6 {[%emt 0:01:21]} fxg6 {[%emt 0:00:17]} 30. Nxg6 {[%emt 0:00:10]} Qh7 {[%emt 0:03:13]} 31. Ne5+ {[%emt 0:00:18]} 1-0